Cogmind - Beta 17.1 @@@ ROGUE MODE // 2026.09.20 @ 11:25:15 Player: celerysam Result: Destroyed by FO-Z0F(h) with Bolt Gun Performance ------------- Evolutions (0) 0 Regions Visited (3) 600 Robots Destroyed (23) 115 Value Destroyed (488) 488 Prototype IDs (1) 20 Alien Tech Used (0) 0 Bonus (6215) 6215 TOTAL SCORE: 7438 Bonus ------- Follower Combat Kills 1215 Prayed to X0-1V1 5000 Cogmind --------- Core Integrity 0/250 Matter 138/300 Energy 99/125 System Corruption 1% Temperature Cool (51) Movement Rolling (93) Location -8/Scraptown Parts ------- > --- POWER (1) -------- Light Ion Engine > --- PROPULSION (3) --- Compact Wheel Armored Wheel Armored Wheel > --- UTILITY (2) ------ Large Storage Unit Makeshift Light Armor Plating > --- WEAPON (2) ------- EM Shotgun Gauss Rifle > --- INVENTORY (15) --- Subdweller Power Source Light Treads Light Treads Wheel Improved Cooling System Medium Storage Unit Advanced Sensor Array Improved Targeting Computer X0-1V1's Piety Tracker Mining Laser Mace Falx Peak State ------------ > --- POWER ------------ Light Ion Engine > --- PROPULSION ------- Compact Wheel Armored Wheel Armored Wheel > --- UTILITY ---------- Improved Cooling System Large Storage Unit > --- WEAPON ----------- EM Pulse Cannon Gauss Rifle > --- INVENTORY -------- Subdweller Power Source Light Treads Light Treads Wheel Medium Storage Unit Advanced Sensor Array Improved Targeting Computer Makeshift Light Armor Plating X0-1V1's Piety Tracker EM Shotgun Mining Laser Mace Falx [Rating: 22] Favorites ----------- Power Light Ion Engine Engine Light Ion Engine Propulsion Armored Wheel Leg Aluminum Leg Wheel Armored Wheel Utility Large Storage Unit Device Cooling System Storage Large Storage Unit Protection Makeshift Light Armor Plating Weapon Improved EM Shotgun Energy Gun Improved EM Shotgun Energy Cannon EM Pulse Cannon Ballistic Gun Light Assault Rifle Ballistic Cannon Light Cannon Special Weapon Mining Laser Build | -11 -10 -10 -8 ------- Run | Yrd Mat Sub Scr Slots Evolved . | . . . . Power . | . . . . Propulsion . | . . . . Utility . | . . . . Weapon . | . . . . Parts Attached 29 | 6 11 2 10 Power 4 | . 2 1 1 Engine 4 | . 2 1 1 Core . | . . . . Reactor . | . . . . Propulsion 7 | 2 2 . 3 Treads . | . . . . Leg 2 | 2 . . . Wheel 5 | . 2 . 3 Hover . | . . . . Flight . | . . . . Utility 6 | 1 3 . 2 Device 2 | . 1 . 1 Storage 3 | 1 2 . . Processor . | . . . . Hackware . | . . . . Protection 1 | . . . 1 Artifact . | . . . . Weapon 12 | 3 4 1 4 Energy Gun 5 | 1 3 . 1 Energy Cannon 1 | . . . 1 Ballistic Gun 3 | 2 . . 1 Ballistic Cannon 2 | . 1 . 1 Launcher . | . . . . Special Weapon 1 | . . 1 . Impact Weapon . | . . . . Slashing Weapon . | . . . . Piercing Weapon . | . . . . Special Melee Weapon . | . . . . Unidentified Prototypes 1 | . 1 . . Parts Lost 11 | . 3 4 4 Power 3 | . 1 2 . Propulsion 3 | . 1 . 2 Utility . | . . . . Weapon 5 | . 1 2 2 Highest Loss Streak 2 | . 1 2 2 To Critical Strikes . | . . . . Average Backups 11 | 4 8 12 13 Power 1 | 1 1 1 1 Propulsion 5 | 3 5 7 5 Utility 2 | . . 3 3 Weapon 1 | . 1 . 3 Tool/Special . | . . . . Unused Backups 10 | . 1 . 9 Power 1 | . . . 1 Propulsion 5 | . 1 . 4 Utility 2 | . . . 2 Weapon 2 | . . . 2 Tool/Special . | . . . . Average Slot Usage (%) 89 | . 84 89 94 Engine 10 | . 9 12 11 Leg 7 | . 16 . . Wheel 20 | . 10 28 28 Device 9 | . 5 14 13 Storage 13 | . 14 14 13 Energy Gun 8 | . 17 3 . Energy Cannon 3 | . . . 11 Ballistic Gun 3 | . 6 . 1 Ballistic Cannon 7 | . 3 13 9 Special Weapon 1 | . . 3 2 Peak Build Rating 22 | 5 14 14 22 Average Rating 12 | 3 10 11 18 On Entrance 7 | . 5 14 10 Avg Prop Armor Cover (%) . | . . . . Naked Turns . | . . . . Heaviest Build 37 | 7 33 33 37 Greatest Support 40 | 20 24 24 40 Greatest Overweight (x) 3 | . 1 1 3 Average Overweight (x) . | . . . . Largest Inventory Capacity 15 | 8 15 15 15 Average Capacity 12 | 6 10 15 15 Most Carried 15 | 7 13 13 15 Average Carried 11 | 5 8 12 13 Final Capacity 15 | 8 15 15 15 Final Carried 13 | 7 13 12 12 Class Distribution -------------------- 100% | Mutant Dominant Class ---------------- Mutant | -10/Materials Mutant | -10/Subcaves Mutant | -8/Scraptown Resources | -11 -10 -10 -8 ----------- Run | Yrd Mat Sub Scr Matter Collected 604 | 258 118 156 72 Remotely . | . . . . Salvage Created 607 | . 537 70 . Parts 45 | . 42 3 . Haulers Intercepted 1 | . 1 . . Recyclers Shooed . | . . . . Parts Field Recycled . | . . . . Retrieved Matter . | . . . . Parts Self-Destructed 7 | . . 7 . Prevented . | . . . . Parts Restored . | . . . . Kills | -11 -10 -10 -8 ------- Run | Yrd Mat Sub Scr Combat Hostiles Destroyed 18 | . 15 3 . Guns 8 | . 8 . . Cannons 6 | . 3 3 . AOE 4 | . 4 . . Classes Destroyed 6 | . 5 1 . Worker 1 | . 1 . . Hauler 1 | . 1 . . Watcher 3 | . 3 . . Swarmer 9 | . 9 . . Grunt 6 | . 6 . . Subdweller 3 | . . 3 . Best Kill Streak 7 | . 7 1 . Combat Bots Only 4 | . 4 1 . Max Kills in Single Turn 3 | . 3 1 . Gunslinging . | . . . . Exploded 3 | . 3 . . Melee . | . . . . Uniques/NPCs Destroyed 1 | . . . 1 Triborg (-8/Scraptown) Combat | -11 -10 -10 -8 -------- Run | Yrd Mat Sub Scr Hostile Shots Fired 155 | . 104 31 20 Missed 56 | . 39 12 5 Hits 99 | . 65 19 15 Projectile 99 | . 65 19 15 Damage Taken 1637 | . 678 474 485 Core 295 | . 117 94 84 Absorbed by Shields . | . . . . Core Remaining (%) 100 | 100 . . . Volleys Fired 81 | . 50 30 1 Largest 2 | . 2 2 2 Hottest 100 | . 90 100 91 Shots Fired 113 | . 73 38 2 Gun 67 | . 58 8 1 Cannon 42 | . 15 26 1 Launcher . | . . . . Special 4 | . . 4 . Kinetic 63 | . 36 26 1 Thermal 4 | . . 4 . Explosive . | . . . . Electromagnetic 46 | . 37 8 1 Robot Hit Streak 20 | . 8 19 20 Robot Miss Streak 6 | . 6 1 1 Penetration Max . | . . . . Secondary Targets 4 | . 4 . . Max Gunslinging Chain 1 | . 1 . . Shots Hit Robots 75 | . 40 34 1 Core Hits 36 | . 29 6 1 Critical Kills . | . . . . Critical Parts Destroyed . | . . . . Critical Strikes 3 | . 2 1 . Blast 2 | . 1 1 . Corrupt 1 | . 1 . . Melee Attacks . | . . . . Impact . | . . . . Slashing . | . . . . Piercing . | . . . . Sneak Attacks . | . . . . Combat Hostiles . | . . . . Follow-up Attacks . | . . . . Damage Inflicted 1228 | . 762 446 20 Guns 604 | . 490 114 . Cannons 462 | . 110 332 20 Explosions 162 | . 162 . . Melee . | . . . . Ramming . | . . . . Kinetic 492 | . 160 332 . Thermal 162 | . 162 . . Explosive . | . . . . Electromagnetic 574 | . 440 114 20 Impact . | . . . . Slashing . | . . . . Piercing . | . . . . Highest Corruption 1 | . . . 1 Average Corruption 1 | . . . 1 Corruption Purged . | . . . . Corruption Blocked . | . . . . Overload Shots . | . . . . Overflow Damage . | . . . . Projectiles . | . . . . Explosions . | . . . . Melee . | . . . . Knockbacks 5 | . . 5 . Impact . | . . . . Kinetic 5 | . . 5 . Secondary . | . . . . Self-Inflicted Damage 35 | . 35 . . Shots 1 | . 1 . . Rammed . | . . . . Targets Rammed . | . . . . Kicked . | . . . . Crushed . | . . . . Highest Temperature 184 | . 96 . 184 Average Temperature 35 | . 30 . 71 Received Heat Transfer 360 | . 147 141 72 Siege Activations . | . . . . Martial Activations . | . . . . Shielding Activations . | . . . . Robots Disrupted . | . . . . Combat Hostiles . | . . . . Robots Corrupted . | . . . . Combat Hostiles . | . . . . Parts Fried 1 | . 1 . . Impact Corruptions . | . . . . Robots Melted . | . . . . Combat Hostiles . | . . . . Parts Melted . | . . . . Heat Transferred 150 | . 150 . . Parts Sabotaged . | . . . . Parts Stolen . | . . . . Parts Stripped . | . . . . Power Chain Reactions 3 | . 3 . . Alert | -11 -10 -10 -8 ------- Run | Yrd Mat Sub Scr Maximum Alert Level . | . . . . Low Security (%) 100 | 100 100 . . Level 1 . | . . . . Level 2 . | . . . . Level 3 . | . . . . Level 4 . | . . . . Level 5 . | . . . . High Security . | . . . . Max Security . | . . . . Peak Influence 182 | . 182 . . Initial . | . . . . Average 61 | . 67 . . Influence Increases 450 | . 420 30 . Destroy 0b10 Robot/C 300 | . 300 . . Destroy 0b10 Robot/NC 25 | . 25 . . Destroy Leader 68 | . 68 . . Disable Machine 15 | . 15 . . Destroy Structure 12 | . 12 . . Lose Combat Pursuer 30 | . . 30 . Influence Decreases 450 | . 276 174 . Entered New Map 70 | . . 70 . Time Decay 346 | . 246 100 . Lost Part 34 | . 30 4 . Squads Dispatched 2 | . 2 . . Investigation 1 | . 1 . . Extermination . | . . . . Reinforcement 1 | . 1 . . Assault . | . . . . Garrison . | . . . . Intercept . | . . . . Searches Triggered . | . . . . Construction Impeded . | . . . . Haulers Reinforced . | . . . . Active Scanning Responses . | . . . . Cargo Convoy Interrupts . | . . . . Stealth | -11 -10 -10 -8 --------- Run | Yrd Mat Sub Scr Distress Signals 1 | . 1 . . Communications Jammed . | . . . . Distress Signals . | . . . . Times Spotted 45 | . 24 5 16 Peak Tracking Total 15 | . 4 2 15 Tactical Retreats 2 | . . 1 1 Traps | -11 -10 -10 -8 ------- Run | Yrd Mat Sub Scr Traps Triggered 2 | . 2 . . Indirectly . | . . . . Trap Hack Attempts . | . . . . Triggered . | . . . . Disarmed . | . . . . Reprogrammed . | . . . . Reused . | . . . . Traps Extracted . | . . . . Installed . | . . . . Triggered . | . . . . Machines | -11 -10 -10 -8 ---------- Run | Yrd Mat Sub Scr Machines Disabled 7 | . 1 . 6 Max in Single Turn 1 | . 1 . . Machines Repaired . | . . . . Machines Dismantled . | . . . . Machines Sabotaged . | . . . . Overloaded Fab Kills . | . . . . Hacking | -11 -10 -10 -8 --------- Run | Yrd Mat Sub Scr Machines Accessed 2 | . 2 . . Terminals 2 | . 2 . . Fabricators . | . . . . Repair Stations . | . . . . Recycling Units . | . . . . Scanalyzers . | . . . . Garrison Access . | . . . . Total Hacks 3 | . 3 . . Successful 1 | . 1 . . Failed 2 | . 2 . . Catastrophic . | . . . . Database Lockouts . | . . . . Manual 6 | . 6 . . Terminals 3 | . 3 . . Fabricators . | . . . . Repair Stations . | . . . . Recycling Units . | . . . . Scanalyzers . | . . . . Garrison Access . | . . . . Terminal Hacks . | . . . . Fabricator Hacks . | . . . . Repair Station Hacks . | . . . . Recycling Unit Hacks . | . . . . Scanalyzer . | . . . . Garrison Access Hacks . | . . . . Unauthorized Hacks 1 | . 1 . . Terminals 1 | . 1 . . Botnet 1 | . 1 . . Fabricators . | . . . . Repair Stations . | . . . . Recycling Units . | . . . . Scanalyzers . | . . . . Garrison Access . | . . . . Data Cores Recovered . | . . . . Used . | . . . . Hacking Detections 2 | . 2 . . Full Trace Events 1 | . 1 . . Feedback Events . | . . . . Feedback Blocked . | . . . . Robot Schematics Acquired . | . . . . Robots Built . | . . . . Authchips . | . . . . Time . | . . . . Total Robot Build Rating . | . . . . Part Schematics Acquired . | . . . . Parts Built . | . . . . Authchips . | . . . . Time . | . . . . Total Part Build Rating . | . . . . Part Studies Acquired . | . . . . Parts Repaired . | . . . . Time . | . . . . Parts Recycled . | . . . . Recycled Matter . | . . . . Retrieved Matter . | . . . . Retrieved Components . | . . . . Parts Scanalyzed . | . . . . Part Schematics Acquired . | . . . . Parts Damaged . | . . . . Bothacking | -11 -10 -10 -8 ------------ Run | Yrd Mat Sub Scr Used RIF Installer . | . . . . Robots Hacked . | . . . . Non-combat . | . . . . Combat . | . . . . Robot Hacks Applied . | . . . . Relay Couplers Released . | . . . . Fabnet Peak Effective % . | . . . . Robots Rewired . | . . . . Allies Hacked . | . . . . Hacks Repelled . | . . . . Allies | -11 -10 -10 -8 -------- Run | Yrd Mat Sub Scr Total Allies 1 | . . . 1 Largest Group 1 | . . . 1 Highest-Rated Group 464 | . . . 464 Highest-Rated Ally 464 | . . . 464 Total Orders . | . . . . Ally Attacks 53 | . . . 53 Total Damage 6292 | . . . 6292 Kills 39 | . . . 39 Allies Corrupted . | . . . . Allies Melted . | . . . . X0-1V1 Amusement Gains 80 | . 10 20 50 Average Entertainment 16 | . 10 7 36 Good Acts 4 | . . 1 3 Bad Acts 2 | . . 1 1 Intel | -11 -10 -10 -8 ------- Run | Yrd Mat Sub Scr Active Infowar (turns) . | . . . . Robot Analysis Total . | . . . . Derelict Logs Recovered 2 | . . 1 1 Drone Launches . | . . . . Drone Recoveries . | . . . . Exploration | -11 -10 -10 -8 ------------- Run | Yrd Mat Sub Scr Turns Passed 1926 | 81 809 412 624 Spaces Moved 1506 | 66 570 317 553 Core 19 | 19 . . . Treads . | . . . . Legs 354 | 47 307 . . Wheels 1133 | . 263 317 553 Hover . | . . . . Flight . | . . . . Fastest Speed 50 | 50 90 90 90 Average Speed 106 | 99 113 103 101 Slowest Speed 190 | 120 190 105 135 Overloaded Moves . | . . . . Propulsion Burnouts . | . . . . Robots Hopped . | . . . . Potential Cave-ins . | . . . . Cave-ins Triggered . | . . . . Exploration Rate (%) 39 | 5 79 25 49 Regions Visited 3 Branch Regions 2 Pre-discovered Areas . | . . . . Known Exits Taken . | . . . . Unknown Exits Taken 3 | 1 1 1 . Scrap Searched 2 | . . . 2 Spaces Dug . | . . . . Terrain Destroyed 10 | . 10 . . Melee . | . . . . Projectile . | . . . . AOE 10 | . 10 . . Terrain Rammed . | . . . . Walls Destroyed . | . . . . Machines Disabled . | . . . . Actions | -11 -10 -10 -8 --------- Run | Yrd Mat Sub Scr Total 1709 | 78 664 353 614 Wait 55 | . 13 2 40 Move 1503 | 65 569 316 553 Hop . | . . . . Pick Up 29 | 7 13 1 8 Fast Attach 10 | 5 5 . . Attach 13 | . 4 2 7 Detach . | . . . . Swap 9 | 1 3 2 3 Drop 9 | . 7 . 2 Fire 81 | . 50 30 1 Melee . | . . . . Ram . | . . . . Kick . | . . . . Crush . | . . . . Escape Stasis . | . . . . Rewire . | . . . . Trap . | . . . . Miscellaneous . | . . . . Route ------- -11/Scrapyard -10/Materials (discovered 5 exits: [*Mat x3] / [*Min] / [*Sub]) -10/Subcaves (discovered 4 exits: *Mat x2 / [*Rec] / [*Scr]) -8/Scraptown (discovered 2 exits: *Fac x2) History --------- Turn | Location | Event 7 | -11/Scrapyard | Discovered new exit (range 14) 82 | -11/Scrapyard | Entered Materials 149 | -10/Materials | Discovered new exit (range 16) 241 | -10/Materials | Discovered new exit (range 15) 315 | -10/Materials | Build established: Mutant 558 | -10/Materials | Discovered new exit (range 13) 657 | -10/Materials | Discovered new exit (range 15) 878 | -10/Materials | Discovered new exit (range 8) 884 | -10/Materials | Prayed at D.C.S.S. Altar Unit 891 | -10/Materials | Entered Subcaves 892 | -10/Subcaves | Approached by a straggling Scientist 978 | -10/Subcaves | Core integrity restored by X0-1V1 (+37) 1057 | -10/Subcaves | Core integrity fell below 50% 1156 | -10/Subcaves | Discovered new exit (range 10) 1172 | -10/Subcaves | Identified exit to Materials 1228 | -10/Subcaves | Discovered exit to Materials (range 16) 1297 | -10/Subcaves | Scientist uncovered a shortcut to Scraptown 1303 | -10/Subcaves | Entered Scraptown 1517 | -8/Scraptown | Scanned Subdweller tech in exchange for log data 1520 | -8/Scraptown | Learned Research terminal intel 1536 | -8/Scraptown | Discovered new exit (range 7) 1630 | -8/Scraptown | Heard Great Nut preacher, LISTEN AND RECITE! 1634 | -8/Scraptown | Visited Assassins FH 1664 | -8/Scraptown | Visited Cyclists 1745 | -8/Scraptown | X0-1V1 brought Wyrm Statue to life 1745 | -8/Scraptown | Attacked by Scraptown defenders 1753 | -8/Scraptown | Core integrity fell below 20% 1771 | -8/Scraptown | Identified exit to Factory 1771 | -8/Scraptown | X0-1V1 revealed exit location to -6/Factory 1879 | -8/Scraptown | Propulsion slot count permanently improved by X0-1V1 (+1) 1890 | -8/Scraptown | X0-1V1 activates XOMVISION 1917 | -8/Scraptown | Visited Comm Corps 1927 | -8/Scraptown | Destroyed by FO-Z0F(h) with Bolt Gun Last Messages --------------- 01890_ X0-1V1: "Enjoy your XOMVISION!" 01894_ The unstable cave ceiling collapses. 01897_ NK-IPB(E) system terminally corrupted. 01897_ The unstable cave ceiling collapses. 01897_ 78 Matter crushed. 01898_ NZ-5M3(x) destroyed. 01903_ Acquired Mak. Light Armor Plating. 01905_ The unstable cave ceiling collapses. 01905_ Acquired 2 matter. 01908_ The unstable cave ceiling collapses. 01910_ XB-J3Q(j) suffers critical hit (Meltdown). 01911_ ZQ-7QO(j): "If it isn't public enemy #1: the new Wanderer!" 01912_ ZQ-7QO(j) destroyed. 01913_ The unstable cave ceiling collapses. 01920_ Scrap Suit crushed. 01921_ The unstable cave ceiling collapses. 01925_ EM Pulse Cannon destroyed. 01927_ X0-1V1 laughs nastily! Map ----- +----------------------------------------------------+ | ###### ##########??????????????????????????????? | | " # ????????????????????????????? | | # ????????????????????????????? | | # ????????????????????????????? | | ????????????????????????????? | | # ?????????????????????????????? | | # #### ######?????????????????????????????? | | # #??? ?????????????????????????????????? | | # #???? ???????????????????????????????? | | # #????? ???????????????????????????????? | | # #????? ???????? ?????????????????????? | | # #?????? ????????? ???????????????????? | | " # #???????????????? ????????????????? | | #### #???????????????? h ??????????????? | | #### #????????????????j ????????????? | | "" # #??????????????##= ?????????????? | | # #????????????###!%= #?????????????? | | # #????????????# = %=####??????????? | | #????????????# = % = ?????????? | | # #????????????# ! %! ?????????? | | # #????????????# %!== = "?????????? | | # #????????????# ![! "?????????? | | # ############## !=[% "?????????? | | # !=% % "?????????? | | X" # [[! "?????????? | | #### l @ "?????????? | | ???# "?????????? | | #### "?????????? | | #"?????????? | | *= #??????????? | | ! #??????????? | | ############ ############ # % ## #??????????? | | #??????????? ??# =! ! # #??????????? | | #???????????? ##" !% # D #??????????? | | #?????????????""##" "#### #%D #??????????? | | #???????????????##"??# "" # [ ! #??????????? | | #????????????????????# #??????????? | | #????????????????????#"" # #% # #??????????? | | #????????????????????###+## "# #??????????? | | #??????????????????????? "# "###??????????? | | #?????????????????????""""""""# %"#????????????? | | #?????????????????????######### ##????????????? | | #?????????????????????????????# #?????????????? | | #?????????????????????######### #?????????????? | | #????????????????????"""""""""" #?????????????? | | #???????????????????""""" """"" #?????????????? | | ##????????????##???#"""" " "" #?????????????? | | #???????????# #?????????????? | | ##???###????## #???#"" "" "" " #?????????????? | | ##???"""""???"" "#???"""""""""""% #?????????????? | +----------------------------------------------------+ Best States ------------- Heat Dissipation 52 Energy Generation 10 Energy Capacity 250 Matter Stores 300 Matter Capacity 300 Sight Range 16 Terrain Scan Density 10 Armor Coverage 100 Evasion (%) 55 Item Schematics ----------------- None Robot Schematics ------------------ None Fabricated ------------ Nothing Repaired ---------- Nothing Studied --------- None Alien Tech Used ----------------- None Achievements -------------- None Challenges ------------ None Game ------ Seed HelicalWarpBank Manual? 0 Play Time 01:19:57 Cumulative 309.6 hours Start 2026.09.19 @ 18:27:56 End 2026.09.20 @ 11:25:15 Sessions 1 Manual Loads 0 Difficulty Rogue Special Mode None Game No. 476 Rogue 476 Adventurer 0 Explorer 0 Win Type - Total 1 Types 1/0/0/0/0/0/0/0/0/0 Lore% 66 Gallery% 60 Achievement% 35 Wizard Run 0 Options --------- Layout 1 ASCII 0 Keyboard 0 Movement Mouse Keybinds 0 Fullscreen 2 Font 24/Tallcaps Map View 50x35 Zoom Use 0% Tactical HUD 1 Map Filters NONE Filters NONE Steam 1 RUN: 154aa832-e648-4f8f-81f9-ec26eb841d05